[Event "Titled Tuesday Blitz February 22 Early 2022"]
[White "Sviridova, Vlada"]
[Black "Yuan, Qingyu"]
[WhiteFideId "24109606"]
[BlackFideId "8609772"]
[WhiteElo "2101"]
[BlackElo "2359"]
[Result "0-1"]
[Round "04"]
[TimeControl "180+1"]
[Date "2022.02.22"]
[WhiteClock "0:00:45"]
[BlackClock "0:00:24"]

1. d4 {[%clk 0:03:00]}  d5 {[%clk 0:02:59]} 2. c4 {[%clk 0:03:00]}  e6 {[%clk 0:03:00]} 3. Nf3 {[%clk 0:03:01]}  Nf6 {[%clk 0:03:01]} 4. Nc3 {[%clk 0:03:00]}  a6 {[%clk 0:03:01]} 5. cxd5 {[%clk 0:02:58]}  exd5 {[%clk 0:03:01]} 6. Bf4 {[%clk 0:02:57]}  Bd6 {[%clk 0:03:01]} 7. Bg5 {[%clk 0:02:56]}  Be6 {[%clk 0:02:57]} 8. e3 {[%clk 0:02:54]}  Nbd7 {[%clk 0:02:54]} 9. Bd3 {[%clk 0:02:54]}  O-O {[%clk 0:02:52]} 10. O-O {[%clk 0:02:52]}  c6 {[%clk 0:02:52]} 11. Qc2 {[%clk 0:02:52]}  h6 {[%clk 0:02:52]} 12. Bf4 {[%clk 0:02:50]}  Qc7 {[%clk 0:02:50]} 13. Bxd6 {[%clk 0:02:49]}  Qxd6 {[%clk 0:02:50]} 14. a3 {[%clk 0:02:44]}  Bg4 {[%clk 0:02:49]} 15. Be2 {[%clk 0:02:33]}  Rfe8 {[%clk 0:02:46]} 16. h3 {[%clk 0:02:33]}  Bh5 {[%clk 0:02:43]} 17. Nd2 {[%clk 0:02:23]}  Bxe2 {[%clk 0:02:40]} 18. Nxe2 {[%clk 0:02:23]}  Re6 {[%clk 0:02:22]} 19. Nc3 {[%clk 0:02:20]}  Rae8 {[%clk 0:02:17]} 20. Rae1 {[%clk 0:02:07]}  Nh5 {[%clk 0:02:17]} 21. Qd3 {[%clk 0:02:00]}  Nf4 {[%clk 0:02:04]} 22. Qc2 {[%clk 0:01:49]}  Qe7 {[%clk 0:01:28]} 23. Nf3 {[%clk 0:01:46]}  Nh5 {[%clk 0:01:20]} 24. Nh2 {[%clk 0:01:46]}  Rg6 {[%clk 0:01:19]} 25. Kh1 {[%clk 0:01:44]}  Ndf6 {[%clk 0:01:17]} 26. g4 {[%clk 0:01:40]}  Qe6 {[%clk 0:00:52]} 27. gxh5 {[%clk 0:01:23]}  Rg5 {[%clk 0:00:48]} 28. f4 {[%clk 0:01:08]}  Rxh5 {[%clk 0:00:46]} 29. f5 {[%clk 0:01:08]}  Qd6 {[%clk 0:00:46]} 30. Rf3 {[%clk 0:01:06]}  Ne4 {[%clk 0:00:43]} 31. Rg1 {[%clk 0:00:59]}  Ng5 {[%clk 0:00:38]} 32. Rfg3 {[%clk 0:00:58]}  Nxh3 {[%clk 0:00:29]} 33. Qg2 {[%clk 0:00:54]}  Nxg1 {[%clk 0:00:24]} 34. Rxg7+ {[%clk 0:00:52]}  Kh8 {[%clk 0:00:24]} 35. Qxg1 {[%clk 0:00:48]}  Rxh2+ {[%clk 0:00:23]} 36. Qxh2 {[%clk 0:00:48]}  Qxh2+ {[%clk 0:00:23]} 37. Kxh2 {[%clk 0:00:49]}  Kxg7 {[%clk 0:00:24]} 38. Kg3 {[%clk 0:00:45]}  Rxe3+ {[%clk 0:00:24]} 39. Kf4 {[%clk 0:00:45]}  Rxc3 {[%clk 0:00:24]} 40. bxc3 {[%clk 0:00:45]}  Kf6 {[%clk 0:00:24]} 0-1


[Site "https://www.chess.com"]

[Event "Titled Tuesday Blitz February 22 Early 2022"]
[White "Tasev, Dejan"]
[Black "Fiorito, Fabian"]
[WhiteFideId "936618"]
[BlackFideId "100200"]
[WhiteElo "2253"]
[BlackElo "2395"]
[Result "1/2-1/2"]
[Round "04"]
[TimeControl "180+1"]
[Date "2022.02.22"]
[WhiteClock "0:00:15"]
[BlackClock "0:00:11"]

1. e4 {[%clk 0:03:00]}  c6 {[%clk 0:02:57]} 2. d4 {[%clk 0:03:00]}  d5 {[%clk 0:02:57]} 3. Nc3 {[%clk 0:03:01]}  dxe4 {[%clk 0:02:57]} 4. Nxe4 {[%clk 0:03:01]}  Nf6 {[%clk 0:02:58]} 5. Nxf6+ {[%clk 0:03:01]}  exf6 {[%clk 0:02:59]} 6. c3 {[%clk 0:03:02]}  Bd6 {[%clk 0:02:58]} 7. Bd3 {[%clk 0:03:02]}  O-O {[%clk 0:02:59]} 8. Qc2 {[%clk 0:03:02]}  Re8+ {[%clk 0:02:59]} 9. Ne2 {[%clk 0:03:01]}  h5 {[%clk 0:03:00]} 10. h3 {[%clk 0:03:01]}  Nd7 {[%clk 0:02:58]} 11. Bd2 {[%clk 0:02:59]}  Nf8 {[%clk 0:02:57]} 12. O-O-O {[%clk 0:02:56]}  g6 {[%clk 0:02:52]} 13. g4 {[%clk 0:02:56]}  hxg4 {[%clk 0:02:49]} 14. hxg4 {[%clk 0:02:56]}  Bxg4 {[%clk 0:02:49]} 15. Rdg1 {[%clk 0:02:55]}  Qd7 {[%clk 0:02:44]} 16. Nf4 {[%clk 0:02:20]}  f5 {[%clk 0:02:37]} 17. Bc4 {[%clk 0:02:01]}  b5 {[%clk 0:02:26]} 18. Bb3 {[%clk 0:02:01]}  Ne6 {[%clk 0:01:32]} 19. Rxg4 {[%clk 0:01:56]}  fxg4 {[%clk 0:01:23]} 20. Nxg6 {[%clk 0:01:55]}  Kg7 {[%clk 0:00:55]} 21. Ne5 {[%clk 0:01:12]}  Bxe5 {[%clk 0:00:49]} 22. Qh7+ {[%clk 0:01:05]}  Kf8 {[%clk 0:00:49]} 23. dxe5 {[%clk 0:01:04]}  Ke7 {[%clk 0:00:43]} 24. Qf5 {[%clk 0:00:52]}  Kd8 {[%clk 0:00:41]} 25. Be3 {[%clk 0:00:45]}  Kc7 {[%clk 0:00:37]} 26. Rd1 {[%clk 0:00:45]}  Qe7 {[%clk 0:00:36]} 27. Qxg4 {[%clk 0:00:40]}  Rad8 {[%clk 0:00:34]} 28. Rh1 {[%clk 0:00:39]}  Kb7 {[%clk 0:00:26]} 29. Qf3 {[%clk 0:00:36]}  Rd7 {[%clk 0:00:23]} 30. Kb1 {[%clk 0:00:35]}  Red8 {[%clk 0:00:18]} 31. a3 {[%clk 0:00:34]}  a5 {[%clk 0:00:18]} 32. Qe4 {[%clk 0:00:32]}  Nc5 {[%clk 0:00:15]} 33. Bxc5 {[%clk 0:00:32]}  Qxc5 {[%clk 0:00:16]} 34. f4 {[%clk 0:00:29]}  Rd2 {[%clk 0:00:15]} 35. Rc1 {[%clk 0:00:26]}  Qf2 {[%clk 0:00:15]} 36. Bc2 {[%clk 0:00:26]}  Re2 {[%clk 0:00:12]} 37. Qf5 {[%clk 0:00:26]}  Rdd2 {[%clk 0:00:10]} 38. Qxf7+ {[%clk 0:00:26]}  Kb6 {[%clk 0:00:10]} 39. Qf5 {[%clk 0:00:26]}  Re1 {[%clk 0:00:09]} 40. Rxe1 {[%clk 0:00:24]}  Qxe1+ {[%clk 0:00:10]} 41. Ka2 {[%clk 0:00:25]}  Qc1 {[%clk 0:00:10]} 42. Qc8 {[%clk 0:00:21]}  Qxc2 {[%clk 0:00:09]} 43. Qb8+ {[%clk 0:00:21]}  Kc5 {[%clk 0:00:09]} 44. Qa7+ {[%clk 0:00:20]}  Kc4 {[%clk 0:00:10]} 45. Qf7+ {[%clk 0:00:13]}  Kc5 {[%clk 0:00:06]} 46. Qe7+ {[%clk 0:00:12]}  Kd5 {[%clk 0:00:06]} 47. Qd6+ {[%clk 0:00:11]}  Ke4 {[%clk 0:00:04]} 48. Qxc6+ {[%clk 0:00:12]}  Kxf4 {[%clk 0:00:05]} 49. Qxb5 {[%clk 0:00:12]}  Qe4 {[%clk 0:00:03]} 50. e6 {[%clk 0:00:12]}  Qd5+ {[%clk 0:00:03]} 51. Qxd5 {[%clk 0:00:12]}  Rxd5 {[%clk 0:00:04]} 52. Kb3 {[%clk 0:00:12]}  Re5 {[%clk 0:00:05]} 53. Ka4 {[%clk 0:00:13]}  Rxe6 {[%clk 0:00:06]} 54. Kxa5 {[%clk 0:00:13]}  Re5+ {[%clk 0:00:07]} 55. Kb6 {[%clk 0:00:13]}  Ke4 {[%clk 0:00:08]} 56. b4 {[%clk 0:00:13]}  Kd3 {[%clk 0:00:08]} 57. a4 {[%clk 0:00:13]}  Kc4 {[%clk 0:00:09]} 58. b5 {[%clk 0:00:13]}  Kxc3 {[%clk 0:00:08]} 59. a5 {[%clk 0:00:14]}  Kb4 {[%clk 0:00:09]} 60. a6 {[%clk 0:00:13]}  Rxb5+ {[%clk 0:00:10]} 61. Kc6 {[%clk 0:00:14]}  Ka5 {[%clk 0:00:11]} 62. a7 {[%clk 0:00:14]}  Rb6+ {[%clk 0:00:11]} 63. Kc7 {[%clk 0:00:14]}  Ra6 {[%clk 0:00:09]} 64. Kb7 {[%clk 0:00:14]}  Rb6+ {[%clk 0:00:10]} 65. Kc7 {[%clk 0:00:15]}  Ra6 {[%clk 0:00:11]} 66. Kb7 {[%clk 0:00:15]}  Rb6+ {[%clk 0:00:11]} 67. Kc7 {[%clk 0:00:15]} 1/2-1/2


[Site "https://www.chess.com"]

[Event "Titled Tuesday Blitz February 22 Early 2022"]
[White "Terzi, Alexei"]
[Black "Pavlidou, Ekaterini"]
[WhiteFideId "13505076"]
[BlackFideId "4213262"]
[WhiteElo "2031"]
[BlackElo "2127"]
[Result "0-1"]
[Round "04"]
[TimeControl "180+1"]
[Date "2022.02.22"]
[WhiteClock "0:00:48"]
[BlackClock "0:01:48"]

1. e4 {[%clk 0:02:59]}  c5 {[%clk 0:02:59]} 2. Nc3 {[%clk 0:02:58]}  Nc6 {[%clk 0:02:59]} 3. Bb5 {[%clk 0:02:57]}  Nd4 {[%clk 0:02:57]} 4. Nf3 {[%clk 0:02:57]}  e6 {[%clk 0:02:57]} 5. Nxd4 {[%clk 0:02:53]}  cxd4 {[%clk 0:02:57]} 6. Ne2 {[%clk 0:02:53]}  a6 {[%clk 0:02:57]} 7. Ba4 {[%clk 0:02:53]}  b5 {[%clk 0:02:57]} 8. Bb3 {[%clk 0:02:53]}  Bc5 {[%clk 0:02:56]} 9. d3 {[%clk 0:02:51]}  Ne7 {[%clk 0:02:55]} 10. O-O {[%clk 0:02:51]}  O-O {[%clk 0:02:55]} 11. f4 {[%clk 0:02:52]}  f6 {[%clk 0:02:55]} 12. Ng3 {[%clk 0:02:49]}  d5 {[%clk 0:02:54]} 13. Qe2 {[%clk 0:02:36]}  Bb7 {[%clk 0:02:49]} 14. Kh1 {[%clk 0:02:35]}  Qd7 {[%clk 0:02:45]} 15. Bd2 {[%clk 0:02:34]}  a5 {[%clk 0:02:40]} 16. a4 {[%clk 0:02:30]}  b4 {[%clk 0:02:37]} 17. Rae1 {[%clk 0:02:29]}  Rae8 {[%clk 0:02:37]} 18. Qg4 {[%clk 0:02:22]}  f5 {[%clk 0:02:32]} 19. exf5 {[%clk 0:02:10]}  Nxf5 {[%clk 0:02:24]} 20. Nxf5 {[%clk 0:02:07]}  Rxf5 {[%clk 0:02:24]} 21. Re2 {[%clk 0:02:02]}  Ref8 {[%clk 0:02:23]} 22. Rfe1 {[%clk 0:02:01]}  R5f6 {[%clk 0:02:17]} 23. Rxe6 {[%clk 0:01:52]}  Bc8 {[%clk 0:02:16]} 24. f5 {[%clk 0:01:26]}  Rxf5 {[%clk 0:02:13]} 25. h3 {[%clk 0:01:17]}  Qxe6 {[%clk 0:02:06]} 26. Rxe6 {[%clk 0:01:16]}  Bxe6 {[%clk 0:02:07]} 27. Qg3 {[%clk 0:01:00]}  h5 {[%clk 0:01:55]} 28. h4 {[%clk 0:00:54]}  Ba7 {[%clk 0:01:53]} 29. Bh6 {[%clk 0:00:50]}  Rf1+ {[%clk 0:01:48]} 30. Kh2 {[%clk 0:00:48]}  Bb8 {[%clk 0:01:48]} 0-1


[Site "https://www.chess.com"]

[Event "Titled Tuesday Blitz February 22 Early 2022"]
[White "Todorovic, Bojan"]
[Black "Baskin, Robert"]
[WhiteFideId "917087"]
[BlackFideId "24662402"]
[WhiteElo "2266"]
[BlackElo "2488"]
[Result "0-1"]
[Round "04"]
[TimeControl "180+1"]
[Date "2022.02.22"]
[WhiteClock "0:00:02"]
[BlackClock "0:01:40"]

1. Nf3 {[%clk 0:02:59]}  Nf6 {[%clk 0:02:57]} 2. c4 {[%clk 0:02:58]}  b6 {[%clk 0:02:52]} 3. Nc3 {[%clk 0:02:57]}  Bb7 {[%clk 0:02:51]} 4. d4 {[%clk 0:02:54]}  e6 {[%clk 0:02:50]} 5. g3 {[%clk 0:02:53]}  Bb4 {[%clk 0:02:46]} 6. Bg2 {[%clk 0:02:46]}  O-O {[%clk 0:02:45]} 7. O-O {[%clk 0:02:45]}  Bxc3 {[%clk 0:02:45]} 8. bxc3 {[%clk 0:02:44]}  d6 {[%clk 0:02:46]} 9. a4 {[%clk 0:02:10]}  Nc6 {[%clk 0:02:41]} 10. Nd2 {[%clk 0:02:04]}  Na5 {[%clk 0:02:40]} 11. e4 {[%clk 0:02:02]}  Ba6 {[%clk 0:02:38]} 12. c5 {[%clk 0:01:33]}  dxc5 {[%clk 0:02:35]} 13. e5 {[%clk 0:01:23]}  Nd5 {[%clk 0:02:34]} 14. Qg4 {[%clk 0:00:46]}  Nxc3 {[%clk 0:02:30]} 15. Ne4 {[%clk 0:00:37]}  Ne2+ {[%clk 0:02:17]} 16. Kh1 {[%clk 0:00:36]}  Nxc1 {[%clk 0:02:17]} 17. Nf6+ {[%clk 0:00:32]}  Kh8 {[%clk 0:02:17]} 18. Qh4 {[%clk 0:00:21]}  h6 {[%clk 0:02:15]} 19. Rfxc1 {[%clk 0:00:15]}  Qxd4 {[%clk 0:02:14]} 20. Be4 {[%clk 0:00:11]}  Bb7 {[%clk 0:02:06]} 21. Rd1 {[%clk 0:00:09]}  Qxe5 {[%clk 0:02:05]} 22. Bxb7 {[%clk 0:00:07]}  Nxb7 {[%clk 0:02:06]} 23. Nd7 {[%clk 0:00:07]}  Qf5 {[%clk 0:02:02]} 24. Nxf8 {[%clk 0:00:06]}  Rxf8 {[%clk 0:02:03]} 25. Qe7 {[%clk 0:00:07]}  Kg8 {[%clk 0:01:57]} 26. Qxc7 {[%clk 0:00:06]}  Na5 {[%clk 0:01:54]} 27. Kg1 {[%clk 0:00:06]}  h5 {[%clk 0:01:49]} 28. Rd8 {[%clk 0:00:06]}  Rxd8 {[%clk 0:01:48]} 29. Qxd8+ {[%clk 0:00:06]}  Kh7 {[%clk 0:01:48]} 30. Re1 {[%clk 0:00:06]}  Nc4 {[%clk 0:01:47]} 31. Qc7 {[%clk 0:00:04]}  f6 {[%clk 0:01:45]} 32. Rd1 {[%clk 0:00:03]}  Ne5 {[%clk 0:01:44]} 33. Qxa7 {[%clk 0:00:02]}  Nf3+ {[%clk 0:01:43]} 34. Kg2 {[%clk 0:00:02]}  Qe4 {[%clk 0:01:40]} 0-1


[Site "https://www.chess.com"]

[Event "Titled Tuesday Blitz February 22 Early 2022"]
[White "Tologon tegin, Semetei"]
[Black "Melian, Juan Sebastian"]
[WhiteFideId "13800574"]
[BlackFideId "3706575"]
[WhiteElo "2258"]
[BlackElo "1842"]
[Result "0-1"]
[Round "04"]
[TimeControl "180+1"]
[Date "2022.02.22"]
[WhiteClock "0:00:02"]
[BlackClock "0:00:07"]

1. e4 {[%clk 0:02:33]}  c6 {[%clk 0:02:58]} 2. d3 {[%clk 0:02:30]}  d5 {[%clk 0:02:58]} 3. Nd2 {[%clk 0:02:30]}  g6 {[%clk 0:02:54]} 4. Ngf3 {[%clk 0:02:30]}  Bg7 {[%clk 0:02:54]} 5. g3 {[%clk 0:02:30]}  Bg4 {[%clk 0:02:50]} 6. Bg2 {[%clk 0:02:30]}  Nd7 {[%clk 0:02:50]} 7. h3 {[%clk 0:02:29]}  Bxf3 {[%clk 0:02:50]} 8. Nxf3 {[%clk 0:02:29]}  e6 {[%clk 0:02:50]} 9. O-O {[%clk 0:02:28]}  Ne7 {[%clk 0:02:50]} 10. Qe2 {[%clk 0:02:20]}  O-O {[%clk 0:02:48]} 11. c3 {[%clk 0:02:20]}  Qc7 {[%clk 0:02:39]} 12. h4 {[%clk 0:02:13]}  a5 {[%clk 0:02:30]} 13. h5 {[%clk 0:02:09]}  a4 {[%clk 0:02:30]} 14. a3 {[%clk 0:02:08]}  b5 {[%clk 0:02:25]} 15. exd5 {[%clk 0:01:58]}  Nxd5 {[%clk 0:01:55]} 16. d4 {[%clk 0:01:49]}  Rfe8 {[%clk 0:01:42]} 17. hxg6 {[%clk 0:01:40]}  hxg6 {[%clk 0:01:43]} 18. Ng5 {[%clk 0:01:32]}  e5 {[%clk 0:01:32]} 19. Bxd5 {[%clk 0:01:30]}  cxd5 {[%clk 0:01:32]} 20. Qxb5 {[%clk 0:01:30]}  exd4 {[%clk 0:00:58]} 21. Bf4 {[%clk 0:01:00]}  Be5 {[%clk 0:00:18]} 22. Qxd5 {[%clk 0:00:51]}  Nb6 {[%clk 0:00:18]} 23. Qxd4 {[%clk 0:00:46]}  Bxf4 {[%clk 0:00:15]} 24. Qxf4 {[%clk 0:00:33]}  Qxf4 {[%clk 0:00:15]} 25. gxf4 {[%clk 0:00:34]}  Nc4 {[%clk 0:00:16]} 26. Rfe1 {[%clk 0:00:30]}  Nxb2 {[%clk 0:00:14]} 27. Ne4 {[%clk 0:00:30]}  Kg7 {[%clk 0:00:14]} 28. Nd6 {[%clk 0:00:28]}  Red8 {[%clk 0:00:12]} 29. Nb5 {[%clk 0:00:26]}  Nd3 {[%clk 0:00:12]} 30. Re4 {[%clk 0:00:25]}  Rab8 {[%clk 0:00:12]} 31. Nd4 {[%clk 0:00:18]}  Rb2 {[%clk 0:00:11]} 32. Rf1 {[%clk 0:00:16]}  Rc8 {[%clk 0:00:09]} 33. f5 {[%clk 0:00:13]}  Rxc3 {[%clk 0:00:08]} 34. fxg6 {[%clk 0:00:14]}  Kxg6 {[%clk 0:00:08]} 35. Nf3 {[%clk 0:00:13]}  f6 {[%clk 0:00:07]} 36. Rxa4 {[%clk 0:00:13]}  Nc1 {[%clk 0:00:06]} 37. Rg4+ {[%clk 0:00:11]}  Kf7 {[%clk 0:00:06]} 38. Rg3 {[%clk 0:00:11]}  Ne2+ {[%clk 0:00:06]} 39. Kg2 {[%clk 0:00:11]}  Nxg3 {[%clk 0:00:07]} 40. Kxg3 {[%clk 0:00:12]}  Rbb3 {[%clk 0:00:07]} 41. Kg2 {[%clk 0:00:11]}  Rxf3 {[%clk 0:00:08]} 42. a4 {[%clk 0:00:12]}  Ra3 {[%clk 0:00:08]} 43. a5 {[%clk 0:00:12]}  Rf5 {[%clk 0:00:09]} 44. Rc1 {[%clk 0:00:12]}  Rfxa5 {[%clk 0:00:10]} 45. Rc7+ {[%clk 0:00:13]}  Kg6 {[%clk 0:00:10]} 46. Rc8 {[%clk 0:00:13]}  Rg5+ {[%clk 0:00:11]} 47. Kf1 {[%clk 0:00:12]}  Ra2 {[%clk 0:00:12]} 48. Rc1 {[%clk 0:00:10]}  Rf5 {[%clk 0:00:12]} 49. Kg1 {[%clk 0:00:10]}  Rfxf2 {[%clk 0:00:11]} 50. Kh1 {[%clk 0:00:11]}  Rf5 {[%clk 0:00:11]} 51. Rg1+ {[%clk 0:00:10]}  Rg5 {[%clk 0:00:11]} 52. Rf1 {[%clk 0:00:07]}  f5 {[%clk 0:00:10]} 53. Rc1 {[%clk 0:00:05]}  Rh5+ {[%clk 0:00:10]} 54. Kg1 {[%clk 0:00:05]}  Rh4 {[%clk 0:00:09]} 55. Rc8 {[%clk 0:00:04]}  Rb4 {[%clk 0:00:08]} 56. Rc1 {[%clk 0:00:03]}  Rab2 {[%clk 0:00:07]} 57. Rc7 {[%clk 0:00:02]}  Kg5 {[%clk 0:00:07]} 58. Rc8 {[%clk 0:00:02]}  Kf4 {[%clk 0:00:08]} 59. Kh1 {[%clk 0:00:02]}  R4b3 {[%clk 0:00:07]} 60. Rc1 {[%clk 0:00:02]}  Rb1 {[%clk 0:00:06]} 61. Kg2 {[%clk 0:00:01]}  Rxc1 {[%clk 0:00:06]} 62. Kf2 {[%clk 0:00:02]}  Rc2+ {[%clk 0:00:06]} 63. Ke1 {[%clk 0:00:02]}  Rb1# {[%clk 0:00:07]} 0-1


[Site "https://www.chess.com"]

[Event "Titled Tuesday Blitz February 22 Early 2022"]
[White "Tomiello, Mateus Costamilan"]
[Black "Marcinczyk, Monika"]
[WhiteFideId "22701958"]
[BlackFideId "1192051"]
[WhiteElo "1975"]
[BlackElo "1730"]
[Result "1-0"]
[Round "04"]
[TimeControl "180+1"]
[Date "2022.02.22"]
[WhiteClock "0:00:11"]
[BlackClock "0:00:03"]

1. d4 {[%clk 0:03:00]}  d5 {[%clk 0:02:59]} 2. c4 {[%clk 0:03:01]}  e6 {[%clk 0:02:59]} 3. Nf3 {[%clk 0:03:01]}  Nf6 {[%clk 0:02:58]} 4. g3 {[%clk 0:03:00]}  b6 {[%clk 0:02:56]} 5. Bg2 {[%clk 0:03:00]}  Bb7 {[%clk 0:02:56]} 6. Ne5 {[%clk 0:02:59]}  Nbd7 {[%clk 0:02:56]} 7. Qa4 {[%clk 0:02:59]}  c5 {[%clk 0:02:50]} 8. dxc5 {[%clk 0:02:49]}  Bxc5 {[%clk 0:02:48]} 9. O-O {[%clk 0:02:29]}  O-O {[%clk 0:02:47]} 10. Nc6 {[%clk 0:02:26]}  Qc7 {[%clk 0:02:42]} 11. cxd5 {[%clk 0:02:25]}  Nxd5 {[%clk 0:02:36]} 12. Nd4 {[%clk 0:02:20]}  Nb4 {[%clk 0:02:30]} 13. Nb5 {[%clk 0:02:16]}  Qc8 {[%clk 0:02:10]} 14. Bxb7 {[%clk 0:02:14]}  Qxb7 {[%clk 0:02:09]} 15. a3 {[%clk 0:02:15]}  Nd5 {[%clk 0:01:59]} 16. b4 {[%clk 0:02:11]}  Be7 {[%clk 0:01:57]} 17. Bb2 {[%clk 0:02:10]}  Bf6 {[%clk 0:01:53]} 18. Bxf6 {[%clk 0:02:01]}  N7xf6 {[%clk 0:01:52]} 19. Rc1 {[%clk 0:01:39]}  Rfd8 {[%clk 0:01:43]} 20. N1c3 {[%clk 0:01:28]}  a6 {[%clk 0:01:37]} 21. Nxd5 {[%clk 0:01:28]}  Nxd5 {[%clk 0:01:36]} 22. Nd4 {[%clk 0:01:24]}  b5 {[%clk 0:01:29]} 23. Qb3 {[%clk 0:01:21]}  Nf4 {[%clk 0:01:23]} 24. gxf4 {[%clk 0:01:03]}  Rxd4 {[%clk 0:01:23]} 25. e3 {[%clk 0:01:00]}  Qf3 {[%clk 0:01:13]} 26. Qc3 {[%clk 0:00:50]}  Rd5 {[%clk 0:01:00]} 27. Qc8+ {[%clk 0:00:43]}  Rd8 {[%clk 0:00:59]} 28. Qc5 {[%clk 0:00:30]}  h5 {[%clk 0:00:56]} 29. Qg5 {[%clk 0:00:28]}  Rd2 {[%clk 0:00:50]} 30. Qg3 {[%clk 0:00:26]}  Qe4 {[%clk 0:00:40]} 31. Rc7 {[%clk 0:00:22]}  Rad8 {[%clk 0:00:38]} 32. Rcc1 {[%clk 0:00:14]}  Re2 {[%clk 0:00:20]} 33. Rd1 {[%clk 0:00:14]}  Rdd2 {[%clk 0:00:19]} 34. Rxd2 {[%clk 0:00:13]}  Rxd2 {[%clk 0:00:20]} 35. Rc1 {[%clk 0:00:13]}  Kh7 {[%clk 0:00:19]} 36. Qg2 {[%clk 0:00:13]}  Qd3 {[%clk 0:00:14]} 37. Qf3 {[%clk 0:00:10]}  Kh6 {[%clk 0:00:13]} 38. f5 {[%clk 0:00:07]}  Qxf5 {[%clk 0:00:12]} 39. Qxf5 {[%clk 0:00:07]}  exf5 {[%clk 0:00:12]} 40. Rc6+ {[%clk 0:00:08]}  g6 {[%clk 0:00:11]} 41. Rxa6 {[%clk 0:00:09]}  Ra2 {[%clk 0:00:10]} 42. Kg2 {[%clk 0:00:10]}  Kg5 {[%clk 0:00:10]} 43. h3 {[%clk 0:00:10]}  Kh4 {[%clk 0:00:10]} 44. Ra5 {[%clk 0:00:10]}  f6 {[%clk 0:00:09]} 45. Rxb5 {[%clk 0:00:11]}  Rxa3 {[%clk 0:00:09]} 46. Rb6 {[%clk 0:00:11]}  Rb3 {[%clk 0:00:09]} 47. b5 {[%clk 0:00:11]}  g5 {[%clk 0:00:08]} 48. Kf3 {[%clk 0:00:10]}  g4+ {[%clk 0:00:08]} 49. hxg4 {[%clk 0:00:10]}  fxg4+ {[%clk 0:00:08]} 50. Kg2 {[%clk 0:00:11]}  Kg5 {[%clk 0:00:07]} 51. Rb8 {[%clk 0:00:11]}  h4 {[%clk 0:00:08]} 52. b6 {[%clk 0:00:12]}  h3+ {[%clk 0:00:06]} 53. Kg3 {[%clk 0:00:12]}  f5 {[%clk 0:00:07]} 54. b7 {[%clk 0:00:11]}  Kh6 {[%clk 0:00:03]} 55. Rh8+ {[%clk 0:00:10]}  Kg7 {[%clk 0:00:03]} 56. b8=Q {[%clk 0:00:11]} 1-0


[Site "https://www.chess.com"]

[Event "Titled Tuesday Blitz February 22 Early 2022"]
[White "Tsydypov, Zhamsaran"]
[Black "Moiseenko, Alexander"]
[WhiteFideId "4108566"]
[BlackFideId "14102560"]
[WhiteElo "2614"]
[BlackElo "2577"]
[Result "0-1"]
[Round "04"]
[TimeControl "180+1"]
[Date "2022.02.22"]
[WhiteClock "0:00:16"]
[BlackClock "0:00:08"]

1. b3 {[%clk 0:03:00]}  e5 {[%clk 0:02:58]} 2. Bb2 {[%clk 0:03:00]}  Nc6 {[%clk 0:02:59]} 3. e3 {[%clk 0:03:00]}  Nf6 {[%clk 0:02:53]} 4. Bb5 {[%clk 0:02:58]}  e4 {[%clk 0:02:52]} 5. d3 {[%clk 0:02:31]}  a6 {[%clk 0:02:43]} 6. Bxc6 {[%clk 0:02:31]}  dxc6 {[%clk 0:02:43]} 7. Ne2 {[%clk 0:02:32]}  exd3 {[%clk 0:02:36]} 8. cxd3 {[%clk 0:02:32]}  Be7 {[%clk 0:02:30]} 9. O-O {[%clk 0:02:31]}  O-O {[%clk 0:02:30]} 10. Ng3 {[%clk 0:02:31]}  c5 {[%clk 0:02:30]} 11. Nc3 {[%clk 0:02:28]}  b6 {[%clk 0:02:30]} 12. e4 {[%clk 0:02:28]}  Re8 {[%clk 0:02:16]} 13. f4 {[%clk 0:02:24]}  Bb7 {[%clk 0:02:15]} 14. Kh1 {[%clk 0:02:21]}  Qd7 {[%clk 0:02:12]} 15. Qf3 {[%clk 0:02:16]}  Rad8 {[%clk 0:02:11]} 16. Rad1 {[%clk 0:02:16]}  Qg4 {[%clk 0:02:05]} 17. Qf2 {[%clk 0:02:13]}  Qh4 {[%clk 0:02:03]} 18. Qf3 {[%clk 0:02:05]}  Qg4 {[%clk 0:01:59]} 19. Qe3 {[%clk 0:02:03]}  Bf8 {[%clk 0:01:38]} 20. Qg1 {[%clk 0:01:40]}  b5 {[%clk 0:00:58]} 21. Nf5 {[%clk 0:01:25]}  c4 {[%clk 0:00:51]} 22. bxc4 {[%clk 0:01:21]}  bxc4 {[%clk 0:00:52]} 23. Ne3 {[%clk 0:01:21]}  Qh5 {[%clk 0:00:45]} 24. g4 {[%clk 0:01:06]}  Qc5 {[%clk 0:00:34]} 25. g5 {[%clk 0:01:06]}  Rxd3 {[%clk 0:00:09]} 26. Rxd3 {[%clk 0:00:59]}  Nxe4 {[%clk 0:00:08]} 27. Rd5 {[%clk 0:00:16]}  Nxc3 {[%clk 0:00:08]} 28. Bxc3 {[%clk 0:00:16]}  Qxe3 {[%clk 0:00:08]} 0-1


[Site "https://www.chess.com"]

[Event "Titled Tuesday Blitz February 22 Early 2022"]
[White "Vakhlamov, Igor L."]
[Black "Jacobson, Aaron"]
[WhiteFideId "24126748"]
[BlackFideId "2089912"]
[WhiteElo "2768"]
[BlackElo "2529"]
[Result "0-1"]
[Round "04"]
[TimeControl "180+1"]
[Date "2022.02.22"]
[WhiteClock "0:00:03"]
[BlackClock "0:00:25"]

1. e4 {[%clk 0:03:00]}  d5 {[%clk 0:02:55]} 2. exd5 {[%clk 0:03:00]}  Nf6 {[%clk 0:02:56]} 3. Nf3 {[%clk 0:02:59]}  Bg4 {[%clk 0:02:55]} 4. h3 {[%clk 0:02:52]}  Bxf3 {[%clk 0:02:55]} 5. Qxf3 {[%clk 0:02:53]}  Qxd5 {[%clk 0:02:56]} 6. Qf4 {[%clk 0:02:44]}  e5 {[%clk 0:02:53]} 7. Qa4+ {[%clk 0:02:42]}  Nc6 {[%clk 0:02:50]} 8. Nc3 {[%clk 0:02:42]}  Qd4 {[%clk 0:02:42]} 9. Bb5 {[%clk 0:02:37]}  Qxa4 {[%clk 0:02:18]} 10. Bxa4 {[%clk 0:02:38]}  Bc5 {[%clk 0:02:17]} 11. d3 {[%clk 0:02:33]}  O-O-O {[%clk 0:02:17]} 12. Bxc6 {[%clk 0:02:32]}  bxc6 {[%clk 0:02:18]} 13. Bg5 {[%clk 0:02:26]}  h6 {[%clk 0:02:17]} 14. Bxf6 {[%clk 0:02:25]}  gxf6 {[%clk 0:02:18]} 15. Ne4 {[%clk 0:02:25]}  Be7 {[%clk 0:02:18]} 16. g4 {[%clk 0:02:25]}  h5 {[%clk 0:02:18]} 17. Ke2 {[%clk 0:02:25]}  Kd7 {[%clk 0:02:17]} 18. c3 {[%clk 0:02:21]}  Ke6 {[%clk 0:02:18]} 19. Ng3 {[%clk 0:02:21]}  hxg4 {[%clk 0:02:14]} 20. hxg4 {[%clk 0:02:22]}  Rxh1 {[%clk 0:02:05]} 21. Rxh1 {[%clk 0:02:23]}  Rg8 {[%clk 0:02:05]} 22. f3 {[%clk 0:02:22]}  Rb8 {[%clk 0:02:04]} 23. b3 {[%clk 0:02:21]}  a5 {[%clk 0:02:04]} 24. Nf5 {[%clk 0:02:18]}  a4 {[%clk 0:01:49]} 25. b4 {[%clk 0:01:22]}  c5 {[%clk 0:01:48]} 26. Rb1 {[%clk 0:01:19]}  cxb4 {[%clk 0:01:24]} 27. Nxe7 {[%clk 0:01:19]}  Kxe7 {[%clk 0:01:23]} 28. Rxb4 {[%clk 0:01:19]}  Rxb4 {[%clk 0:01:04]} 29. cxb4 {[%clk 0:01:20]}  f5 {[%clk 0:00:58]} 30. Ke3 {[%clk 0:00:13]}  Ke6 {[%clk 0:00:50]} 31. g5 {[%clk 0:00:13]}  Kd5 {[%clk 0:00:28]} 32. f4 {[%clk 0:00:12]}  c6 {[%clk 0:00:28]} 33. a3 {[%clk 0:00:08]}  Kd6 {[%clk 0:00:28]} 34. Kf3 {[%clk 0:00:07]}  Ke6 {[%clk 0:00:27]} 35. Kg3 {[%clk 0:00:07]}  Kd5 {[%clk 0:00:27]} 36. Kf3 {[%clk 0:00:08]}  Kd4 {[%clk 0:00:27]} 37. Kg3 {[%clk 0:00:04]}  e4 {[%clk 0:00:23]} 38. dxe4 {[%clk 0:00:04]}  Kxe4 {[%clk 0:00:24]} 39. g6 {[%clk 0:00:02]}  fxg6 {[%clk 0:00:24]} 40. Kh4 {[%clk 0:00:03]}  Kxf4 {[%clk 0:00:25]} 0-1


[Site "https://www.chess.com"]